bitfinex/quotes_BTCUSD_20260215
["timestamp","ask_amount","ask_price","bid_price","bid_amount"]
[1771182252314,0.12172452,68419.0,68398.0,0.1820761]
[1771182252746,0.09364,68425.0,68386.0,0.4292]
[1771182252747,0.57714193,68410.0,68386.0,0.4292]
[1771182252960,0.57714193,68410.0,68379.0,0.073121]
[1771182252961,0.12147452,68406.0,68379.0,0.073121]
[1771182253175,0.12147452,68404.0,68381.0,0.1820761]
[1771182253386,0.17409419,68415.0,68390.0,0.57714193]
[1771182253591,0.12147452,68414.0,68391.0,0.18599104]
[1771182253813,0.12147452,68414.0,68390.0,0.65025007]
[1771182253814,0.12147452,68414.0,68393.0,0.18599104]
[1771182254258,0.17409419,68416.0,68392.0,0.33556]
[1771182254466,0.12147452,68413.0,68393.0,0.18599104]
[1771182254648,0.12147452,68411.0,68392.0,0.52155104]
[1771182254852,0.12147452,68411.0,68392.0,0.52138996]
[1771182255280,0.12147452,68411.0,68392.0,0.33539892]
[1771182255478,0.12147452,68411.0,68393.0,0.18599104]
[1771182255918,0.12147452,68411.0,68385.0,0.09364]
[1771182255919,0.12147452,68393.0,68360.0,0.57714193]
[1771182256127,0.12147452,68393.0,68373.0,0.18619104]
[1771182256592,0.12147452,68391.0,68373.0,0.18619104]
[1771182257247,0.12147452,68391.0,68373.0,0.18662221]
[1771182258433,0.10147452,68391.0,68373.0,0.18662221]
[1771182261499,0.17409419,68408.0,68380.0,0.57714193]
[1771182261705,0.0004,68426.0,68381.0,0.18599104]
[1771182261706,0.11147452,68407.0,68381.0,0.18599104]
[1771182261913,0.11147452,68407.0,68383.0,0.18599104]
[1771182262753,0.11147452,68407.0,68381.0,0.07311895]
[1771182262970,0.11147452,68407.0,68380.0,0.07312078]
[1771182263188,0.39847063,68409.0,68373.0,0.00063117]
[1771182263189,0.17409419,68388.0,68373.0,0.00063117]
[1771182263403,0.17409419,68388.0,68366.0,0.0002]
[1771182263404,0.57714193,68383.0,68366.0,0.0002]
[1771182263609,0.07312608,68376.0,68353.0,0.18599104]
[1771182263818,0.11147452,68375.0,68353.0,0.18599104]
[1771182264041,0.17409419,68361.0,68312.0,0.07387364]
[1771182264250,0.17409419,68361.0,68310.0,0.23162643]
[1771182264251,0.11097452,68361.0,68343.0,0.18639494]
[1771182264665,0.07313,68372.0,68343.0,0.18639494]
[1771182264666,0.37014452,68368.0,68344.0,0.18599104]
[1771182264899,0.57714193,68380.0,68344.0,0.07315839]
[1771182264900,0.11122452,68367.0,68344.0,0.07315839]
[1771182265123,0.11122452,68381.0,68355.0,0.07314647]
[1771182265324,0.11122452,68381.0,68361.0,0.07314111]
[1771182265526,0.11122452,68381.0,68360.0,0.57714193]
[1771182265527,0.11122452,68381.0,68362.0,0.18549104]
[1771182265732,0.11122452,68381.0,68355.0,0.43003117]
[1771182265733,0.11122452,68381.0,68356.0,0.18599104]
[1771182266136,0.11122452,68381.0,68355.0,0.43003117]
[1771182266137,0.25888,68389.0,68355.0,0.18642221]
[1771182266352,0.17409419,68388.0,68368.0,0.0002]
[1771182266560,0.25888,68389.0,68355.0,0.00043117]
[1771182266561,0.11122452,68379.0,68359.0,0.18599104]
[1771182266786,0.11122452,68379.0,68355.0,0.00043117]
[1771182266992,0.25888,68389.0,68355.0,0.00043117]
[1771182266993,0.17409419,68368.0,68355.0,0.00043117]
[1771182267203,0.11122452,68367.0,68355.0,0.00043117]
[1771182268039,0.11122452,68365.0,68355.0,0.00043117]
[1771182268259,0.11082452,68365.0,68355.0,0.00043117]
[1771182270815,0.07312079,68381.0,68355.0,0.00043117]
[1771182271023,0.00144,68456.0,68370.0,0.57714193]
[1771182271024,0.11102452,68393.0,68370.0,0.57714193]
[1771182271229,0.11102452,68393.0,68371.0,0.18599104]
[1771182271866,0.07310826,68392.0,68371.0,0.18599104]
[1771182272095,0.11102452,68391.0,68371.0,0.18599104]
[1771182272299,0.11102452,68390.0,68371.0,0.18599104]
[1771182272711,0.11102452,68390.0,68371.0,0.18455104]
[1771182272914,0.11102452,68393.0,68371.0,0.18455104]
[1771182273467,0.07311352,68387.0,68361.0,0.18599104]
[1771182273669,0.11102452,68385.0,68361.0,0.18599104]
[1771182274019,0.07311865,68382.0,68361.0,0.18599104]
[1771182274163,0.11102452,68381.0,68361.0,0.18599104]
[1771182275466,0.25904,68385.0,68355.0,0.00063117]
[1771182275467,0.57714193,68371.0,68355.0,0.00063117]
[1771182275681,0.11102452,68369.0,68355.0,0.00063117]
[1771182275855,0.11102452,68368.0,68355.0,0.00063117]
[1771182277127,0.07313496,68367.0,68355.0,0.00063117]
[1771182277330,0.07313662,68366.0,68355.0,0.00063117]
[1771182277524,0.11102452,68366.0,68355.0,0.00063117]
[1771182277938,0.17409419,68365.0,68348.0,0.0002]
[1771182278147,0.11102452,68364.0,68348.0,0.0002]
[1771182278360,0.00043117,68365.0,68348.0,0.0002]
[1771182278672,0.00043117,68365.0,68351.0,0.18599104]
[1771182279294,0.11102452,68371.0,68351.0,0.18599104]
[1771182279493,0.11102452,68371.0,68351.0,0.18642221]
[1771182280101,0.17409419,68370.0,68351.0,0.00043117]
[1771182280445,0.11102452,68367.0,68351.0,0.00043117]
[1771182281610,0.11102452,68378.0,68352.0,0.18599104]
[1771182281833,0.25884,68375.0,68352.0,0.18599104]
[1771182282012,0.11102452,68374.0,68352.0,0.18599104]
[1771182283597,0.11102452,68374.0,68352.0,0.18863346]
[1771182283801,0.11102452,68374.0,68354.0,0.18863346]
[1771182284256,0.09368,68379.0,68361.0,0.18342672]
[1771182284843,0.09368,68379.0,68362.0,0.18342672]
[1771182285049,0.11102452,68378.0,68362.0,0.18342672]
[1771182285262,0.11102452,68378.0,68361.0,0.18342672]
[1771182285474,0.1703297,68396.0,68369.0,0.18342672]
[1771182285684,0.11102452,68393.0,68369.0,0.18342672]
[1771182285899,0.11102452,68393.0,68370.0,0.18342672]
[1771182286124,0.11102452,68393.0,68339.0,0.43843215]
[1771182286125,0.57714193,68390.0,68361.0,0.07314111]
[1771182286338,0.23912,68394.0,68365.0,0.07313668]
[1771182286554,0.1703297,68391.0,68366.0,0.18342672]
[1771182286781,0.11102452,68393.0,68334.0,0.0384]
[1771182287026,0.11102452,68393.0,68373.0,0.18342672]
[1771182287448,0.11102452,68393.0,68360.0,0.57714193]
[1771182287654,0.11102452,68393.0,68374.0,0.07312689]
[1771182287875,0.11102452,68393.0,68370.0,0.57714193]
[1771182288113,0.11102452,68401.0,68384.0,0.07311567]
[1771182288322,0.11102452,68401.0,68386.0,0.07311384]
[1771182288526,0.11102452,68401.0,68386.0,0.25654056]
[1771182288733,0.0004,68393.0,68387.0,0.07311245]
[1771182288938,0.0004,68393.0,68386.0,0.18342672]
[1771182289576,0.0004,68393.0,68377.0,0.073124]
[1771182289779,0.0004,68393.0,68380.0,0.07311991]
[1771182289995,0.0004,68393.0,68381.0,0.25654592]
[1771182290212,0.0004,68393.0,68352.0,0.43843215]
[1771182290213,0.74747163,68391.0,68370.0,0.00012876]
[1771182290446,0.11102452,68388.0,68374.0,0.07312691]
[1771182290658,0.11102452,68388.0,68375.0,0.25655275]
[1771182291079,0.11102452,68388.0,68376.0,0.07312504]
[1771182291378,0.11102452,68388.0,68375.0,0.18342672]
[1771182291597,0.11102452,68388.0,68376.0,0.07312479]
[1771182291812,0.11102452,68388.0,68375.0,0.25655227]
[1771182291813,0.11102452,68388.0,68377.0,0.07312395]
[1771182292051,0.11102452,68388.0,68377.0,0.0728019]
[1771182292479,0.11102452,68388.0,68378.0,0.07312269]
[1771182292686,0.11102452,68388.0,68377.0,0.0728019]
[1771182293835,0.11102452,68388.0,68378.0,0.07312283]
[1771182294235,0.11102452,68388.0,68375.0,0.18342672]
[1771182294508,0.11102452,68388.0,68376.0,0.07312491]
[1771182294716,0.11102452,68388.0,68377.0,0.07312318]
[1771182294864,0.11102452,68388.0,68378.0,0.0731228]
[1771182296401,0.11142452,68388.0,68378.0,0.0731228]
[1771182296602,0.11142452,68388.0,68378.0,0.0741228]
[1771182297452,0.11142452,68388.0,68379.0,0.07312171]
[1771182297802,0.11142452,68388.0,68378.0,0.07412283]
[1771182298364,0.11142452,68388.0,68378.0,0.07412264]
[1771182298579,0.11142452,68388.0,68378.0,0.001]
[1771182299365,0.11142452,68388.0,68359.0,0.29257084]
[1771182299366,0.11142452,68388.0,68324.0,0.21578284]
[1771182299367,0.11102452,68373.0,68324.0,0.21578284]
[1771182299609,0.11102452,68373.0,68316.0,0.00762438]
[1771182299610,0.11083471,68317.0,68316.0,0.00762438]
[1771182299884,0.11083471,68317.0,68299.0,0.0003501]
[1771182299885,0.11083471,68317.0,68306.0,0.1886197]
[1771182300223,0.57816224,68316.0,68306.0,0.13570305]
[1771182300628,0.57816224,68316.0,68299.0,0.0003501]
[1771182300838,0.57816224,68316.0,68287.0,0.10268]
[1771182300839,0.57816224,68316.0,68294.0,0.18342672]
[1771182300840,0.57816224,68309.0,68294.0,0.18342672]
[1771182301264,0.57816224,68304.0,68294.0,0.18342672]
[1771182302796,0.57816224,68304.0,68290.0,0.22269331]
[1771182302797,0.11083471,68304.0,68290.0,0.22269331]
[1771182303544,0.29269874,68330.0,68290.0,0.22269331]
[1771182303744,0.11083471,68317.0,68292.0,0.18342672]
[1771182304632,0.57816224,68320.0,68291.0,0.42968]
[1771182304921,0.43411828,68390.0,68291.0,0.42968]
[1771182304922,0.11083471,68326.0,68300.0,0.18342672]
[1771182305117,0.11083471,68326.0,68300.0,0.18385789]
[1771182305474,0.11083471,68326.0,68302.0,0.18342672]
[1771182305683,0.57816224,68320.0,68302.0,0.18342672]
[1771182305887,0.11083471,68326.0,68302.0,0.18342672]
[1771182306092,0.11083471,68326.0,68303.0,0.33604]
[1771182306419,0.91213682,68330.0,68300.0,0.57859341]
[1771182306420,0.57816224,68313.0,68300.0,0.00043117]
[1771182306616,0.11083471,68318.0,68301.0,0.18342672]
[1771182306828,0.26076,68319.0,68301.0,0.18342672]
[1771182307105,0.11083471,68318.0,68301.0,0.18342672]
[1771182307739,0.11083471,68318.0,68301.0,0.18292672]
[1771182307953,0.11083471,68318.0,68300.0,0.00043117]
[1771182307954,0.57816224,68340.0,68309.0,0.07319676]
[1771182308156,0.11083471,68336.0,68310.0,0.18342672]
[1771182308373,0.57816224,68330.0,68310.0,0.18342672]
[1771182309073,0.11083471,68331.0,68310.0,0.18342672]
[1771182309292,0.11083471,68327.0,68310.0,0.18342672]
[1771182310426,0.4021636,68339.0,68311.0,0.18342672]
[1771182310427,0.07316808,68336.0,68311.0,0.18342672]
[1771182310626,0.11083471,68335.0,68311.0,0.18342672]
[1771182310826,0.10967484,68328.0,68300.0,0.00043117]
[1771182311054,0.11083471,68308.0,68300.0,0.00043117]
[1771182311258,0.11083471,68308.0,68284.0,0.0732215]
[1771182311457,0.11076588,68308.0,68293.0,0.18342672]
[1771182311662,0.11076588,68308.0,68294.0,0.33704]
[1771182311905,0.11076588,68308.0,68295.0,0.18342672]
[1771182312055,0.29273088,68323.0,68294.0,0.33704]
[1771182312056,0.10508455,68327.0,68294.0,0.43076]
[1771182312265,0.10508455,68320.0,68295.0,0.18342672]
[1771182313137,0.10508455,68320.0,68294.0,0.28219728]
[1771182313359,0.10508455,68320.0,68226.0,0.19986306]
[1771182313360,0.10508455,68303.0,68226.0,0.19986306]
[1771182313575,0.68324679,68262.0,68230.0,0.24982883]
[1771182313778,0.57816224,68260.0,68251.0,0.19986306]
[1771182313978,0.00762438,68268.0,68232.0,0.19986306]
[1771182313979,0.57816224,68261.0,68232.0,0.19986306]
[1771182314093,0.10508455,68266.0,68245.0,0.19986306]
[1771182314311,0.10508455,68266.0,68230.0,0.24982883]
[1771182314312,0.10508455,68267.0,68246.0,0.2954787]
[1771182314546,0.00762438,68268.0,68239.0,0.19986306]
[1771182314547,0.10508455,68261.0,68243.0,0.2954787]
[1771182314750,0.1050113,68260.0,68243.0,0.2954787]
[1771182314949,0.10493805,68260.0,68243.0,0.2954787]
[1771182315175,0.57816224,68253.0,68243.0,0.49534176]
[1771182315378,0.57801572,68253.0,68243.0,0.49498825]
[1771182315576,0.68310029,68260.0,68244.0,0.19986306]
[1771182315850,0.57816224,68253.0,68244.0,0.19986306]
[1771182316288,0.57816224,68253.0,68221.0,0.24982883]
[1771182316289,0.07241703,68248.0,68219.0,0.14339]
[1771182316491,0.11400837,68282.0,68218.0,0.09343142]
[1771182316492,0.57816224,68280.0,68240.0,0.126086]
[1771182316708,0.10493805,68285.0,68240.0,0.126086]
[1771182316709,0.57816224,68270.0,68242.0,0.20528861]
[1771182316918,0.57816224,68270.0,68241.0,0.2802]
[1771182316919,0.57816224,68260.0,68244.0,0.20528861]
[1771182318053,0.0732495,68260.0,68245.0,0.34152]
[1771182318267,0.57816224,68270.0,68240.0,0.00043064]
[1771182318268,0.10493805,68267.0,68246.0,0.20321661]
[1771182318496,0.02374715,68291.0,68240.0,0.00043064]
[1771182318497,0.10493805,68279.0,68240.0,0.57859288]
[1771182318710,0.20776837,68293.0,68240.0,0.57859288]
[1771182318711,0.10493805,68289.0,68253.0,0.20321661]
[1771182318913,0.07322518,68283.0,68253.0,0.20321661]
[1771182319119,0.07322569,68284.0,68253.0,0.20321661]
[1771182319319,0.07322585,68282.0,68253.0,0.20321661]
[1771182319539,0.10493805,68289.0,68253.0,0.20321661]
[1771182319704,0.0004,68342.0,68252.0,0.25402077]
[1771182319705,0.07320644,68300.0,68271.0,0.20321661]
[1771182319930,0.57816224,68300.0,68273.0,0.20321661]
[1771182320238,0.57816224,68290.0,68274.0,0.30692]
[1771182320431,0.07376687,68302.0,68275.0,0.20321661]
[1771182320632,0.0005623,68302.0,68275.0,0.20321661]
[1771182320966,0.0005623,68302.0,68277.0,0.20321661]
[1771182321510,0.0005623,68302.0,68281.0,0.20321661]
[1771182322625,0.57816224,68300.0,68281.0,0.34152]
[1771182322826,0.57816224,68300.0,68282.0,0.20321661]
[1771182323085,0.0005623,68302.0,68282.0,0.20321661]
[1771182323313,0.10493805,68299.0,68275.0,0.00012909]
[1771182323460,0.10493805,68299.0,68280.0,0.15928]
[1771182323816,0.07321078,68296.0,68280.0,0.15928]
[1771182324016,0.10493805,68299.0,68280.0,0.15928]
[1771182324222,0.29338011,68302.0,68281.0,0.20321661]
[1771182324223,0.0005623,68302.0,68281.0,0.20321661]
[1771182324984,0.10493805,68310.0,68281.0,0.20310415]
[1771182325558,0.10493805,68310.0,68280.0,0.73844224]
[1771182325750,0.10493805,68310.0,68281.0,0.20310415]
[1771182326163,0.57816224,68320.0,68285.0,0.20310415]
[1771182326164,0.07359032,68316.0,68285.0,0.20310415]
[1771182326370,8.55e-05,68314.0,68285.0,0.20310415]
[1771182326703,0.07319384,68312.0,68285.0,0.20310415]
[1771182327516,0.14214389,68313.0,68285.0,0.20310415]
[1771182327829,0.14214389,68312.0,68285.0,0.20310415]
[1771182328034,0.14214389,68311.0,68285.0,0.20310415]
[1771182328235,0.14214389,68310.0,68285.0,0.20310415]
[1771182328433,8.55e-05,68314.0,68285.0,0.20310415]
[1771182328434,0.14214389,68309.0,68285.0,0.20310415]
[1771182328635,0.14214389,68308.0,68285.0,0.07322245]
[1771182328835,0.14214389,68307.0,68287.0,0.20310415]
[1771182329091,0.11400837,68313.0,68285.0,0.07422245]
[1771182329298,0.11400837,68312.0,68287.0,0.18441306]
[1771182329501,0.11400837,68312.0,68288.0,0.18441306]
[1771182329727,8.55e-05,68314.0,68288.0,0.18441306]
[1771182329864,0.10983845,68316.0,68285.0,0.07422203]
[1771182330080,0.87086311,68330.0,68301.0,0.18441306]
[1771182330081,0.10493805,68318.0,68301.0,0.18441306]
[1771182330282,0.10493805,68318.0,68302.0,0.43396]
[1771182330481,0.10493805,68318.0,68303.0,0.34016]
[1771182330711,0.10493805,68318.0,68304.0,0.18441306]
[1771182330922,0.10493805,68318.0,68305.0,0.34012]
[1771182331373,0.10493805,68318.0,68305.0,0.34024909]
[1771182331779,0.0004,68328.0,68306.0,0.18441306]
[1771182332716,0.00030001,68328.0,68312.0,0.18441306]
[1771182333179,0.00030001,68328.0,68307.0,0.43376]
[1771182333397,0.00030001,68328.0,68308.0,0.18441306]
[1771182334066,0.00030001,68328.0,68310.0,0.18441306]
[1771182334279,0.00030001,68328.0,68310.0,0.57816224]
[1771182334494,0.0004,68335.0,68311.0,0.18441306]
[1771182335135,0.0004,68342.0,68320.0,0.57816224]
[1771182335348,0.0004,68342.0,68322.0,0.18441306]
[1771182336025,0.0004,68342.0,68321.0,0.3398]
[1771182336260,0.10493805,68348.0,68321.0,0.3398]
[1771182336261,0.10493805,68348.0,68327.0,0.07317746]
[1771182336473,0.0007322,68355.0,68331.0,0.18441306]
[1771182337098,0.0007322,68355.0,68313.0,0.43915221]
[1771182337099,0.57816224,68341.0,68275.0,0.25462423]
[1771182337353,0.57816224,68341.0,68293.0,0.20369939]
[1771182337354,0.57816224,68310.0,68293.0,0.20369939]
[1771182337573,0.57816224,68310.0,68289.0,0.07]
[1771182337574,0.07318297,68322.0,68294.0,0.654125]
[1771182337780,0.26444,68346.0,68301.0,0.20369939]
[1771182337991,0.07317083,68334.0,68303.0,0.20369939]
[1771182338200,0.10493805,68336.0,68303.0,0.20369939]
[1771182338201,0.07317575,68329.0,68303.0,0.20369939]
[1771182338655,0.07317575,68329.0,68303.0,0.00012909]
[1771182338656,0.00996794,68329.0,68303.0,0.00012909]
[1771182338867,0.00996794,68329.0,68304.0,0.20369939]
[1771182338868,0.10493805,68328.0,68304.0,0.20369939]
[1771182339069,0.07318421,68321.0,68304.0,0.20369939]
[1771182339276,0.07318869,68317.0,68304.0,0.20369939]
[1771182339492,0.57816224,68330.0,68303.0,0.00012909]
[1771182339493,0.10493805,68319.0,68303.0,0.00012909]
[1771182339690,0.17813163,68313.0,68303.0,0.00012909]
[1771182339896,0.07305283,68307.0,68303.0,0.00012909]
[1771182340072,0.07320019,68306.0,68303.0,0.00012909]
[1771182340473,0.07320088,68307.0,68303.0,0.00012909]
[1771182340679,0.07320126,68305.0,68303.0,0.00012909]
[1771182341037,0.10493805,68313.0,68294.0,0.3408]
[1771182341038,0.07320333,68303.0,68294.0,0.3408]
[1771182341246,0.07320333,68303.0,68292.0,0.0002]
[1771182341247,0.07333355,68303.0,68292.0,0.0002]
[1771182341461,0.29282461,68301.0,68292.0,0.0002]
[1771182341664,0.01697411,68299.0,68278.0,0.0012]
[1771182341874,0.07322116,68287.0,68278.0,0.0012]
[1771182342084,0.57816224,68290.0,68278.0,0.0012]
[1771182342290,0.07321869,68289.0,68278.0,0.0012]
[1771182342520,0.57816224,68290.0,68278.0,0.0012]
[1771182342722,0.0732197,68288.0,68278.0,0.0012]
[1771182342922,0.07307315,68288.0,68278.0,0.0012]
[1771182343070,0.57816224,68290.0,68278.0,0.0012]
[1771182343071,0.17816419,68282.0,68278.0,0.0012]
[1771182343275,0.10493805,68282.0,68278.0,0.0012]
[1771182343484,0.178167,68279.0,68278.0,1e-08]
[1771182343827,0.17802043,68279.0,68278.0,1e-08]
[1771182344327,0.17814962,68279.0,68278.0,1e-08]
[1771182344957,0.57816224,68263.0,68248.0,0.2016532]
[1771182345200,0.65140853,68263.0,68248.0,0.2016532]
[1771182345402,0.65140853,68263.0,68252.0,0.33988]
[1771182345607,0.57816224,68263.0,68252.0,0.33988]
[1771182345808,0.57816224,68263.0,68251.0,0.09376]
[1771182345809,0.10493805,68268.0,68251.0,0.2016532]
[1771182346136,0.07324338,68266.0,68253.0,0.34004]
[1771182346337,0.10493805,68268.0,68253.0,0.5416932]
[1771182346338,0.57816224,68263.0,68253.0,0.5416932]
[1771182346721,0.65140858,68263.0,68253.0,0.5415732]
[1771182347184,0.57816224,68263.0,68253.0,0.5415732]
[1771182347884,0.10493805,68268.0,68253.0,0.5415732]
[1771182348114,0.07324182,68267.0,68253.0,0.2018532]
[1771182348342,0.0732431,68266.0,68254.0,0.33968]
[1771182348586,0.0732431,68266.0,68231.0,0.32989094]
[1771182348587,0.00892415,68259.0,68234.0,0.2016532]
[1771182348791,0.57816224,68250.0,68235.0,0.2016932]
[1771182349222,0.57816224,68250.0,68237.0,0.2016932]
[1771182349446,0.10493805,68258.0,68237.0,0.2016932]
[1771182349680,0.10493805,68258.0,68220.0,0.57816224]
[1771182349681,0.0079374,68259.0,68226.0,0.2016932]
[1771182349895,0.10493805,68258.0,68226.0,0.2016932]
[1771182350128,0.10493805,68249.0,68226.0,0.2016932]
[1771182350338,0.10493805,68249.0,68224.0,0.33952]
[1771182350339,0.07,68253.0,68225.0,0.2016932]
[1771182350763,0.00806654,68259.0,68224.0,0.33952]
[1771182350764,0.00806654,68259.0,68235.0,0.07327593]
[1771182350974,0.10493805,68271.0,68240.0,0.57816224]
[1771182351183,0.57816224,68260.0,68243.0,0.19005644]
[1771182351416,0.57816224,68270.0,68242.0,0.18924836]
[1771182351655,0.57816224,68270.0,68246.0,0.18924836]
[1771182351891,0.57816224,68270.0,68240.0,0.57859288]
[1771182351892,0.57816224,68260.0,68240.0,0.00043064]
[1771182352100,0.57816224,68260.0,68220.0,0.57816224]
[1771182352101,0.07939044,68239.0,68198.0,0.00091434]
[1771182352323,0.57816224,68208.0,68199.0,0.18979897]
[1771182352530,0.50844292,68208.0,68199.0,0.18979897]
[1771182352759,0.10493805,68221.0,68198.0,0.00091434]
[1771182352760,0.57816224,68210.0,68201.0,0.18979897]
[1771182353175,0.57816224,68210.0,68200.0,0.3294]
[1771182353397,0.57816224,68210.0,68175.0,0.07334042]
[1771182353399,0.57816224,68203.0,68144.0,0.03778958]
[1771182353626,0.10493805,68236.0,68181.0,2.141298]
[1771182353854,0.0938,68237.0,68183.0,0.266086]
[1771182353855,0.26564,68235.0,68183.0,0.266086]
[1771182354071,0.26564,68235.0,68188.0,0.18924836]
[1771182354072,0.58101917,68220.0,68188.0,0.18924836]
[1771182354293,0.58101917,68210.0,68189.0,0.23924]
[1771182354506,0.58101917,68210.0,68191.0,0.18924836]
[1771182354711,0.58101917,68220.0,68191.0,0.18924836]
[1771182355157,0.58101917,68220.0,68193.0,0.18924836]
[1771182355368,0.58101917,68220.0,68195.0,0.18924836]
[1771182355618,0.03234816,68242.0,68180.0,0.0384]
[1771182355844,0.10493805,68219.0,68191.0,0.001]
[1771182356073,0.58101917,68200.0,68191.0,0.001]
[1771182356307,0.58101917,68201.0,68191.0,0.001]
[1771182356531,0.58101917,68201.0,68178.0,0.07034737]
[1771182356752,0.58101917,68190.0,68178.0,0.07034737]
[1771182356970,0.00043064,68201.0,68178.0,0.07034737]
[1771182356971,0.58101917,68200.0,68178.0,0.07034737]
[1771182357189,0.00043064,68201.0,68178.0,0.07034737]
[1771182357404,0.58101917,68200.0,68178.0,0.07034737]
[1771182358476,0.10493805,68199.0,68178.0,0.07034737]
[1771182359125,0.10493805,68199.0,68179.0,0.18924836]
[1771182359341,0.10493805,68199.0,68178.0,0.07054737]
[1771182359342,0.58101917,68200.0,68180.0,0.4346]
[1771182359556,0.58101917,68200.0,68178.0,0.25979573]
[1771182359775,0.58101917,68200.0,68181.0,0.4346]
[1771182359776,0.68595722,68200.0,68181.0,0.4346]
[1771182359993,0.10493805,68200.0,68182.0,0.18924836]
[1771182360423,0.10493805,68200.0,68181.0,0.4346]
[1771182360424,0.00043064,68201.0,68184.0,0.18924836]
[1771182360425,0.00043064,68201.0,68181.0,0.4346]
[1771182360426,0.00043064,68201.0,68185.0,0.190497]
[1771182360666,0.26692,68226.0,68185.0,0.190497]
[1771182360667,0.12575644,68225.0,68193.0,0.18924836]
[1771182360899,0.26692,68226.0,68193.0,0.18924836]
[1771182360900,0.05246903,68221.0,68195.0,0.18924836]
[1771182361619,0.05246903,68219.0,68197.0,0.18924836]
[1771182363195,0.05246903,68219.0,68197.0,0.18824836]
[1771182363615,0.05246903,68219.0,68197.0,0.18808718]
[1771182363827,0.58101917,68210.0,68196.0,0.43464]
[1771182364034,0.05246903,68219.0,68198.0,0.3406]
[1771182364465,0.05246903,68219.0,68200.0,0.18924836]
[1771182364670,0.05246903,68229.0,68200.0,0.18924836]
[1771182364843,0.58101917,68220.0,68200.0,0.18924836]
[1771182365342,0.58101917,68220.0,68201.0,0.3272]
[1771182365648,0.58101917,68220.0,68201.0,0.51644836]
[1771182366212,0.58101917,68211.0,68201.0,0.3272]
[1771182366411,0.58101917,68220.0,68201.0,0.3272]
[1771182366607,0.58101917,68220.0,68202.0,0.18924836]
[1771182366819,0.05246903,68222.0,68202.0,0.18924836]
[1771182367388,0.05246903,68222.0,68203.0,0.43404]
[1771182367776,0.05246903,68222.0,68204.0,0.34012]
[1771182367951,0.05246903,68222.0,68204.0,0.434]
[1771182368163,0.58101917,68220.0,68204.0,0.434]
[1771182368824,0.58101917,68230.0,68205.0,0.18924836]
[1771182369162,0.05246903,68228.0,68205.0,0.18924836]
[1771182369491,0.58101917,68220.0,68205.0,0.18924836]
[1771182369634,0.05246903,68228.0,68205.0,0.18924836]
[1771182371238,0.05246903,68228.0,66750.0,0.25]
[1771182371239,0.21839,68187.0,68178.0,0.07054737]
[1771182371457,0.00043064,68187.0,68179.0,0.18924836]
[1771182372883,0.00043064,68187.0,68178.0,0.07054737]
[1771182373144,0.05289967,68187.0,68178.0,0.07054737]
[1771182373336,0.21789,68186.0,68178.0,0.07054737]
[1771182373743,0.1262276,68187.0,68178.0,0.07054737]
[1771182373954,0.07332967,68186.0,68178.0,0.07054737]
[1771182374323,0.07333006,68185.0,68178.0,0.07054737]
[1771182374543,0.21789,68181.0,68178.0,0.07054737]
[1771182374921,0.21789,68182.0,68178.0,0.07054737]
[1771182375533,0.07333157,68184.0,68159.0,1e-08]
[1771182375534,0.05246903,68168.0,68159.0,1e-08]
[1771182375756,0.21789,68169.0,68139.0,0.09763431]
[1771182375757,0.05246903,68157.0,68139.0,0.09763431]
[1771182375960,0.58101917,68180.0,68147.0,0.20546004]
[1771182376130,0.58101917,68180.0,68140.0,0.58101917]
[1771182376131,0.58101917,68180.0,68149.0,0.20546004]
[1771182376336,0.58101917,68170.0,68149.0,0.20546004]
[1771182376518,0.58101917,68170.0,68150.0,0.34072]
[1771182376722,0.05246903,68169.0,68150.0,0.34072]
[1771182376971,0.21789,68168.0,68151.0,0.20546004]
[1771182377167,0.21789,68168.0,68139.0,0.09763431]
[1771182377168,0.05246903,68182.0,68139.0,0.09763431]
[1771182377416,0.09392,68184.0,68154.0,0.20546004]
[1771182377621,0.58101917,68190.0,68171.0,0.0002]
[1771182378049,0.58101917,68181.0,68163.0,0.2496]
[1771182378257,0.05246903,68188.0,68164.0,0.0002]
[1771182378716,0.05246903,68186.0,68164.0,0.0002]
[1771182378943,0.05246903,68186.0,68164.0,0.00032914]
[1771182379127,0.58101917,68180.0,68164.0,0.00032914]
[1771182379677,0.05246903,68186.0,68164.0,0.00032914]
[1771182379881,0.26784,68196.0,68168.0,0.20497666]
[1771182380267,0.26784,68196.0,68164.0,0.07368064]
[1771182380268,0.05246903,68189.0,68165.0,0.20546004]
[1771182380721,0.47705373,68196.0,68170.0,0.58101917]
[1771182380722,0.26784,68196.0,68170.0,0.58101917]
[1771182380918,0.87453917,68210.0,68170.0,0.58101917]
[1771182380919,0.58101917,68210.0,68170.0,0.58101917]
[1771182381091,0.05246903,68199.0,68171.0,0.43424]
[1771182381493,0.05246903,68199.0,68172.0,0.20546004]
[1771182381922,0.05246903,68199.0,68173.0,0.63962004]
[1771182382094,0.05246903,68199.0,68174.0,0.20546004]
[1771182382351,0.58101917,68190.0,68171.0,0.34012]
[1771182382558,0.6334882,68190.0,68171.0,0.34012]
[1771182382689,0.58101917,68200.0,68172.0,0.20546004]
[1771182383045,0.05246903,68199.0,68172.0,0.20546004]
[1771182383265,0.05246903,68199.0,68172.0,0.07334379]
[1771182383476,0.05246903,68199.0,68173.0,0.20546004]
[1771182383713,0.36172,68205.0,68143.0,0.00905726]
[1771182383714,0.58101917,68190.0,68143.0,0.00905726]
[1771182383896,0.05246903,68169.0,68143.0,0.22461683]
[1771182384124,0.05246903,68168.0,68143.0,0.00905726]
[1771182384308,0.05246903,68168.0,68151.0,0.21555957]
[1771182384588,0.26796,68169.0,68151.0,0.21555957]
[1771182384987,0.05246903,68174.0,68151.0,0.21555957]
[1771182385137,0.00012904,68169.0,68151.0,0.21555957]
[1771182385531,0.05259807,68169.0,68168.0,0.0002]
[1771182385747,0.07334819,68168.0,68151.0,0.21555957]
[1771182385954,0.07334838,68168.0,68151.0,0.21555957]
[1771182386356,0.05259807,68169.0,68151.0,0.21555957]
[1771182386581,0.00012904,68169.0,68151.0,0.21555957]
[1771182386783,0.00012904,68169.0,68128.0,0.0025187]
[1771182386784,0.05246903,68165.0,68145.0,0.21348757]
[1771182387207,0.05246903,68165.0,68131.0,0.60964946]
[1771182387208,0.07336037,68157.0,68131.0,0.60964946]
[1771182387432,0.07336335,68154.0,68144.0,0.25127715]
[1771182387631,0.07336221,68155.0,68144.0,0.25127715]
[1771182387835,0.05246903,68163.0,68144.0,0.25127715]
[1771182387836,0.0733619,68156.0,68144.0,0.25127715]
[1771182388041,0.07336368,68154.0,68144.0,0.25127715]
[1771182388470,0.07336509,68153.0,68144.0,0.25127715]
[1771182388665,0.07336254,68155.0,68144.0,0.25127715]
[1771182388866,0.07336218,68155.0,68144.0,0.25127715]
[1771182389304,0.07336218,68155.0,68136.0,0.0007147]
[1771182389305,0.07337833,68140.0,68136.0,0.0007147]
[1771182389506,0.07337726,68141.0,68136.0,0.0007147]
[1771182389770,0.07337726,68141.0,68130.0,0.21448757]